[Event "Titled Tuesday Blitz March 21 Late 2023"]
[White "Rosenberg, Evan S"]
[Black "Yelisieiev, Yevhenii"]
[WhiteFideId "2019299"]
[BlackFideId "14139642"]
[WhiteElo "2328"]
[BlackElo "2447"]
[Result "0-1"]
[Round "05"]
[TimeControl "180+2"]
[Date "2023.03.21"]
[WhiteClock "0:00:02"]
[BlackClock "0:00:33"]

1. d4 {[%clk 0:02:57]}  d6 {[%clk 0:03:00]} 2. e4 {[%clk 0:02:57]}  Nf6 {[%clk 0:03:01]} 3. Nc3 {[%clk 0:02:56]}  e5 {[%clk 0:03:01]} 4. dxe5 {[%clk 0:02:55]}  dxe5 {[%clk 0:03:02]} 5. Qxd8+ {[%clk 0:02:55]}  Kxd8 {[%clk 0:03:03]} 6. Bc4 {[%clk 0:02:55]}  Ke8 {[%clk 0:03:03]} 7. f4 {[%clk 0:02:54]}  Bb4 {[%clk 0:03:01]} 8. Bd2 {[%clk 0:02:43]}  exf4 {[%clk 0:02:58]} 9. e5 {[%clk 0:02:34]}  Bxc3 {[%clk 0:02:57]} 10. Bxc3 {[%clk 0:02:34]}  Ne4 {[%clk 0:02:57]} 11. Bb4 {[%clk 0:02:30]}  Nc6 {[%clk 0:02:44]} 12. Bb5 {[%clk 0:02:16]}  Bd7 {[%clk 0:02:44]} 13. Bxc6 {[%clk 0:02:16]}  Bxc6 {[%clk 0:02:44]} 14. Nf3 {[%clk 0:02:17]}  a5 {[%clk 0:02:27]} 15. Ba3 {[%clk 0:02:14]}  Rd8 {[%clk 0:02:26]} 16. O-O {[%clk 0:02:13]}  b5 {[%clk 0:02:14]} 17. b3 {[%clk 0:02:11]}  b4 {[%clk 0:02:08]} 18. Bc1 {[%clk 0:02:10]}  g5 {[%clk 0:02:07]} 19. a3 {[%clk 0:01:50]}  Ke7 {[%clk 0:01:39]} 20. axb4 {[%clk 0:01:46]}  axb4 {[%clk 0:01:40]} 21. Ra7 {[%clk 0:01:34]}  Rd7 {[%clk 0:01:41]} 22. Bb2 {[%clk 0:01:29]}  Ra8 {[%clk 0:01:40]} 23. Rxa8 {[%clk 0:01:26]}  Bxa8 {[%clk 0:01:40]} 24. Nd4 {[%clk 0:01:00]}  c5 {[%clk 0:01:25]} 25. Nf5+ {[%clk 0:00:53]}  Ke6 {[%clk 0:01:18]} 26. Ng7+ {[%clk 0:00:51]}  Kd5 {[%clk 0:01:17]} 27. Ra1 {[%clk 0:00:35]}  Kc6 {[%clk 0:01:12]} 28. h4 {[%clk 0:00:22]}  g4 {[%clk 0:01:01]} 29. Nh5 {[%clk 0:00:14]}  f3 {[%clk 0:00:52]} 30. gxf3 {[%clk 0:00:14]}  gxf3 {[%clk 0:00:52]} 31. Nf6 {[%clk 0:00:10]}  Nxf6 {[%clk 0:00:48]} 32. exf6 {[%clk 0:00:11]}  Bb7 {[%clk 0:00:45]} 33. Kf2 {[%clk 0:00:10]}  Kb5 {[%clk 0:00:44]} 34. Ke3 {[%clk 0:00:07]}  Rd6 {[%clk 0:00:40]} 35. Be5 {[%clk 0:00:07]}  Rd5 {[%clk 0:00:38]} 36. Kf4 {[%clk 0:00:06]}  Rd2 {[%clk 0:00:38]} 37. c3 {[%clk 0:00:06]}  bxc3 {[%clk 0:00:35]} 38. Bxc3 {[%clk 0:00:06]}  Rd3 {[%clk 0:00:35]} 39. Rc1 {[%clk 0:00:04]}  f2 {[%clk 0:00:34]} 40. Be5 {[%clk 0:00:04]}  Rf3+ {[%clk 0:00:34]} 41. Kg4 {[%clk 0:00:02]}  f1=Q {[%clk 0:00:33]} 0-1


[Site "https://www.chess.com"]

[Event "Titled Tuesday Blitz March 21 Late 2023"]
[White "Reprintsev, Alexander"]
[Black "K2JW"]
[WhiteFideId "14100541"]
[WhiteElo "2229"]
[BlackElo "2327"]
[Result "1/2-1/2"]
[Round "05"]
[TimeControl "180+2"]
[Date "2023.03.21"]
[WhiteClock "0:00:17"]
[BlackClock "0:00:08"]

1. e4 {[%clk 0:02:55]}  c5 {[%clk 0:02:39]} 2. b3 {[%clk 0:02:51]}  g6 {[%clk 0:02:36]} 3. Bb2 {[%clk 0:02:51]}  Nf6 {[%clk 0:02:36]} 4. g4 {[%clk 0:02:51]}  Bg7 {[%clk 0:02:30]} 5. g5 {[%clk 0:02:51]}  Nh5 {[%clk 0:02:30]} 6. Bxg7 {[%clk 0:02:51]}  Nxg7 {[%clk 0:02:31]} 7. Nc3 {[%clk 0:02:51]}  O-O {[%clk 0:02:25]} 8. h4 {[%clk 0:02:46]}  e6 {[%clk 0:02:24]} 9. Qg4 {[%clk 0:02:34]}  d5 {[%clk 0:02:18]} 10. Bg2 {[%clk 0:02:29]}  d4 {[%clk 0:01:50]} 11. Nce2 {[%clk 0:02:27]}  f5 {[%clk 0:01:50]} 12. gxf6 {[%clk 0:02:25]}  Qxf6 {[%clk 0:01:49]} 13. Qg3 {[%clk 0:02:17]}  Nh5 {[%clk 0:01:42]} 14. Qf3 {[%clk 0:02:17]}  Qg7 {[%clk 0:01:27]} 15. Qh3 {[%clk 0:02:12]}  e5 {[%clk 0:01:02]} 16. Qh2 {[%clk 0:02:08]}  Nc6 {[%clk 0:00:50]} 17. Nh3 {[%clk 0:02:01]}  Bg4 {[%clk 0:00:45]} 18. f3 {[%clk 0:01:59]}  Bxf3 {[%clk 0:00:42]} 19. Bxf3 {[%clk 0:01:59]}  Rxf3 {[%clk 0:00:43]} 20. O-O-O {[%clk 0:01:59]}  d3 {[%clk 0:00:38]} 21. Nc3 {[%clk 0:01:59]}  Nb4 {[%clk 0:00:30]} 22. cxd3 {[%clk 0:01:58]}  Nxd3+ {[%clk 0:00:29]} 23. Kb1 {[%clk 0:01:58]}  Raf8 {[%clk 0:00:27]} 24. Rhg1 {[%clk 0:01:51]}  Nf2 {[%clk 0:00:25]} 25. Nxf2 {[%clk 0:01:38]}  Rxf2 {[%clk 0:00:26]} 26. Qh3 {[%clk 0:01:36]}  Nf4 {[%clk 0:00:26]} 27. Qe3 {[%clk 0:01:33]}  Ne6 {[%clk 0:00:24]} 28. h5 {[%clk 0:01:29]}  R8f3 {[%clk 0:00:22]} 29. Qe1 {[%clk 0:01:29]}  g5 {[%clk 0:00:18]} 30. h6 {[%clk 0:01:26]}  Qd7 {[%clk 0:00:18]} 31. Nd5 {[%clk 0:01:26]}  Qb5 {[%clk 0:00:17]} 32. Ka1 {[%clk 0:01:05]}  Nd4 {[%clk 0:00:16]} 33. Rc1 {[%clk 0:01:04]}  Nxb3+ {[%clk 0:00:15]} 34. axb3 {[%clk 0:01:00]}  Qa6+ {[%clk 0:00:11]} 35. Kb2 {[%clk 0:00:57]}  Rxb3+ {[%clk 0:00:10]} 36. Kxb3 {[%clk 0:00:57]}  Qb5+ {[%clk 0:00:07]} 37. Kc2 {[%clk 0:00:49]}  Qa4+ {[%clk 0:00:07]} 38. Kc3 {[%clk 0:00:40]}  Rf3+ {[%clk 0:00:05]} 39. Qe3 {[%clk 0:00:34]}  Rxe3+ {[%clk 0:00:03]} 40. dxe3 {[%clk 0:00:34]}  Qa3+ {[%clk 0:00:03]} 41. Kd2 {[%clk 0:00:34]}  Qa2+ {[%clk 0:00:03]} 42. Kd3 {[%clk 0:00:34]}  Qb3+ {[%clk 0:00:03]} 43. Ke2 {[%clk 0:00:34]}  Qb2+ {[%clk 0:00:03]} 44. Kf3 {[%clk 0:00:34]}  b6 {[%clk 0:00:02]} 45. Rxg5+ {[%clk 0:00:34]}  Kf8 {[%clk 0:00:02]} 46. Rcg1 {[%clk 0:00:34]}  Qh2 {[%clk 0:00:01]} 47. Rg8+ {[%clk 0:00:33]}  Kf7 {[%clk 0:00:02]} 48. R1g7+ {[%clk 0:00:32]}  Ke6 {[%clk 0:00:03]} 49. Re8+ {[%clk 0:00:31]}  Kd6 {[%clk 0:00:03]} 50. Ree7 {[%clk 0:00:16]}  Qh5+ {[%clk 0:00:02]} 51. Kf2 {[%clk 0:00:16]}  Qh2+ {[%clk 0:00:02]} 52. Ke1 {[%clk 0:00:15]}  Qh1+ {[%clk 0:00:03]} 53. Ke2 {[%clk 0:00:15]}  Qxe4 {[%clk 0:00:02]} 54. Nf6 {[%clk 0:00:15]}  Qc2+ {[%clk 0:00:02]} 55. Ke1 {[%clk 0:00:15]}  Qc1+ {[%clk 0:00:03]} 56. Kf2 {[%clk 0:00:15]}  Qc2+ {[%clk 0:00:04]} 57. Kg3 {[%clk 0:00:15]}  Qf5 {[%clk 0:00:03]} 58. Ne8+ {[%clk 0:00:16]}  Kc6 {[%clk 0:00:03]} 59. Rc7+ {[%clk 0:00:16]}  Kb5 {[%clk 0:00:03]} 60. Rce7 {[%clk 0:00:15]}  Qe4 {[%clk 0:00:04]} 61. Rxh7 {[%clk 0:00:15]}  Qxe3+ {[%clk 0:00:04]} 62. Kg4 {[%clk 0:00:15]}  Qe4+ {[%clk 0:00:04]} 63. Kh5 {[%clk 0:00:16]}  Qf5+ {[%clk 0:00:04]} 64. Kh4 {[%clk 0:00:16]}  Qf4+ {[%clk 0:00:05]} 65. Kh3 {[%clk 0:00:16]}  Qf3+ {[%clk 0:00:06]} 66. Kh2 {[%clk 0:00:16]}  Qf2+ {[%clk 0:00:06]} 67. Kh3 {[%clk 0:00:16]}  Qf3+ {[%clk 0:00:06]} 68. Kh4 {[%clk 0:00:17]}  Qf4+ {[%clk 0:00:07]} 69. Kh5 {[%clk 0:00:17]}  Qf5+ {[%clk 0:00:07]} 70. Kh4 {[%clk 0:00:17]}  Qf4+ {[%clk 0:00:08]} 1/2-1/2


[Site "https://www.chess.com"]

[Event "Titled Tuesday Blitz March 21 Late 2023"]
[White "Kalajzic, Ivan"]
[Black "Hajiyev, Kanan"]
[WhiteFideId "14506378"]
[BlackFideId "13404148"]
[WhiteElo "2203"]
[BlackElo "2103"]
[Result "1-0"]
[Round "05"]
[TimeControl "180+2"]
[Date "2023.03.21"]
[WhiteClock "0:00:11"]
[BlackClock "0:00:01"]

1. b3 {[%clk 0:02:57]}  b6 {[%clk 0:02:59]} 2. Bb2 {[%clk 0:02:47]}  Bb7 {[%clk 0:03:00]} 3. e3 {[%clk 0:02:47]}  Nf6 {[%clk 0:03:01]} 4. Nf3 {[%clk 0:02:47]}  e6 {[%clk 0:03:01]} 5. c4 {[%clk 0:02:47]}  Be7 {[%clk 0:03:01]} 6. Nc3 {[%clk 0:02:48]}  O-O {[%clk 0:03:02]} 7. Be2 {[%clk 0:02:48]}  d5 {[%clk 0:03:02]} 8. O-O {[%clk 0:02:48]}  c5 {[%clk 0:03:01]} 9. cxd5 {[%clk 0:02:48]}  Nxd5 {[%clk 0:02:58]} 10. Nxd5 {[%clk 0:02:47]}  Bxd5 {[%clk 0:02:57]} 11. d4 {[%clk 0:02:39]}  Bf6 {[%clk 0:02:55]} 12. Qc2 {[%clk 0:02:37]}  Nc6 {[%clk 0:02:50]} 13. dxc5 {[%clk 0:02:35]}  Bxb2 {[%clk 0:02:42]} 14. Qxb2 {[%clk 0:02:35]}  bxc5 {[%clk 0:02:39]} 15. Rac1 {[%clk 0:02:29]}  Qa5 {[%clk 0:02:26]} 16. Nd2 {[%clk 0:02:12]}  Rac8 {[%clk 0:02:03]} 17. Bf3 {[%clk 0:01:51]}  Nb4 {[%clk 0:01:56]} 18. Bxd5 {[%clk 0:01:40]}  exd5 {[%clk 0:01:37]} 19. a3 {[%clk 0:01:30]}  Nd3 {[%clk 0:01:36]} 20. Qc3 {[%clk 0:01:30]}  Qxc3 {[%clk 0:01:27]} 21. Rxc3 {[%clk 0:01:30]}  Ne5 {[%clk 0:01:26]} 22. Rfc1 {[%clk 0:01:28]}  Rb8 {[%clk 0:01:22]} 23. Kf1 {[%clk 0:01:14]}  Rb6 {[%clk 0:01:01]} 24. Ke2 {[%clk 0:01:13]}  Nd7 {[%clk 0:01:01]} 25. Rd3 {[%clk 0:01:06]}  d4 {[%clk 0:00:36]} 26. exd4 {[%clk 0:00:53]}  cxd4 {[%clk 0:00:37]} 27. Rxd4 {[%clk 0:00:51]}  Re8+ {[%clk 0:00:37]} 28. Re4 {[%clk 0:00:30]}  Rxe4+ {[%clk 0:00:36]} 29. Nxe4 {[%clk 0:00:30]}  f5 {[%clk 0:00:32]} 30. Nd2 {[%clk 0:00:28]}  Rb7 {[%clk 0:00:29]} 31. b4 {[%clk 0:00:26]}  Kf7 {[%clk 0:00:27]} 32. Nf3 {[%clk 0:00:26]}  h6 {[%clk 0:00:26]} 33. Rc6 {[%clk 0:00:24]}  Nf6 {[%clk 0:00:24]} 34. Ne5+ {[%clk 0:00:23]}  Ke7 {[%clk 0:00:25]} 35. f3 {[%clk 0:00:23]}  f4 {[%clk 0:00:21]} 36. Ra6 {[%clk 0:00:21]}  Nd5 {[%clk 0:00:20]} 37. Rxa7 {[%clk 0:00:18]}  Rxa7 {[%clk 0:00:16]} 38. Nc6+ {[%clk 0:00:18]}  Kd6 {[%clk 0:00:17]} 39. Nxa7 {[%clk 0:00:19]}  Nc3+ {[%clk 0:00:18]} 40. Kd3 {[%clk 0:00:19]}  Nd5 {[%clk 0:00:12]} 41. Kc4 {[%clk 0:00:18]}  Ne3+ {[%clk 0:00:12]} 42. Kb5 {[%clk 0:00:18]}  Nxg2 {[%clk 0:00:13]} 43. a4 {[%clk 0:00:18]}  Ne1 {[%clk 0:00:14]} 44. a5 {[%clk 0:00:17]}  Nxf3 {[%clk 0:00:14]} 45. Nc6 {[%clk 0:00:16]}  Ne5 {[%clk 0:00:09]} 46. Nxe5 {[%clk 0:00:15]}  Kxe5 {[%clk 0:00:10]} 47. a6 {[%clk 0:00:16]}  f3 {[%clk 0:00:11]} 48. a7 {[%clk 0:00:16]}  f2 {[%clk 0:00:12]} 49. a8=Q {[%clk 0:00:17]}  f1=Q+ {[%clk 0:00:13]} 50. Kb6 {[%clk 0:00:15]}  Qf2+ {[%clk 0:00:12]} 51. Kc7 {[%clk 0:00:14]}  Qxh2 {[%clk 0:00:09]} 52. b5 {[%clk 0:00:12]}  Qc2+ {[%clk 0:00:08]} 53. Qc6 {[%clk 0:00:11]}  Qh7 {[%clk 0:00:01]} 54. b6 {[%clk 0:00:11]}  g5+ {[%clk 0:00:02]} 55. Qd7 {[%clk 0:00:11]}  Qc2+ {[%clk 0:00:01]} 56. Kd8 {[%clk 0:00:10]}  g4 {[%clk 0:00:01]} 57. b7 {[%clk 0:00:11]}  g3 {[%clk 0:00:01]} 58. b8=Q+ {[%clk 0:00:11]} 1-0


[Site "https://www.chess.com"]

[Event "Titled Tuesday Blitz March 21 Late 2023"]
[White "Itkis, Boris"]
[Black "Molenda, Marcin"]
[WhiteFideId "1209167"]
[BlackFideId "1173065"]
[WhiteElo "2216"]
[BlackElo "2286"]
[Result "1-0"]
[Round "05"]
[TimeControl "180+2"]
[Date "2023.03.21"]
[WhiteClock "0:00:55"]
[BlackClock "0:01:32"]

1. c4 {[%clk 0:02:47]}  Nf6 {[%clk 0:02:45]} 2. Nf3 {[%clk 0:02:44]}  g6 {[%clk 0:02:46]} 3. d4 {[%clk 0:02:34]}  Bg7 {[%clk 0:02:47]} 4. g3 {[%clk 0:02:32]}  O-O {[%clk 0:02:47]} 5. Bg2 {[%clk 0:02:33]}  d6 {[%clk 0:02:47]} 6. O-O {[%clk 0:02:31]}  c6 {[%clk 0:02:47]} 7. b3 {[%clk 0:02:31]}  Bg4 {[%clk 0:02:39]} 8. Bb2 {[%clk 0:02:29]}  Qc8 {[%clk 0:02:39]} 9. Re1 {[%clk 0:02:28]}  Nbd7 {[%clk 0:02:37]} 10. Nbd2 {[%clk 0:02:21]}  Bxf3 {[%clk 0:02:31]} 11. Nxf3 {[%clk 0:02:16]}  Re8 {[%clk 0:02:32]} 12. Qc2 {[%clk 0:02:12]}  e5 {[%clk 0:02:31]} 13. dxe5 {[%clk 0:02:12]}  dxe5 {[%clk 0:02:32]} 14. Bh3 {[%clk 0:02:12]}  Qc7 {[%clk 0:02:31]} 15. Rad1 {[%clk 0:02:11]}  e4 {[%clk 0:02:29]} 16. Ng5 {[%clk 0:02:08]}  Rad8 {[%clk 0:02:23]} 17. Bxd7 {[%clk 0:02:00]}  Rxd7 {[%clk 0:02:22]} 18. Bxf6 {[%clk 0:01:41]}  Bxf6 {[%clk 0:02:18]} 19. Rxd7 {[%clk 0:01:36]}  Qxd7 {[%clk 0:02:17]} 20. Nxe4 {[%clk 0:01:36]}  Bg7 {[%clk 0:02:18]} 21. c5 {[%clk 0:01:30]}  Qf5 {[%clk 0:02:09]} 22. f3 {[%clk 0:01:30]}  h5 {[%clk 0:02:09]} 23. Qc4 {[%clk 0:01:26]}  Re5 {[%clk 0:02:04]} 24. Nd6 {[%clk 0:01:17]}  Qd7 {[%clk 0:02:04]} 25. e4 {[%clk 0:01:08]}  b6 {[%clk 0:02:03]} 26. b4 {[%clk 0:01:07]}  bxc5 {[%clk 0:02:02]} 27. bxc5 {[%clk 0:01:08]}  Bf8 {[%clk 0:01:57]} 28. f4 {[%clk 0:01:08]}  Re6 {[%clk 0:01:56]} 29. e5 {[%clk 0:01:08]}  Kh7 {[%clk 0:01:47]} 30. Rb1 {[%clk 0:01:08]}  Bxd6 {[%clk 0:01:44]} 31. cxd6 {[%clk 0:01:08]}  f6 {[%clk 0:01:43]} 32. Qa6 {[%clk 0:01:05]}  Kh6 {[%clk 0:01:41]} 33. Rb7 {[%clk 0:01:03]}  Qd8 {[%clk 0:01:37]} 34. Qc4 {[%clk 0:00:58]}  Qe8 {[%clk 0:01:31]} 35. d7 {[%clk 0:00:56]}  Qe7 {[%clk 0:01:31]} 36. Qxe6 {[%clk 0:00:55]}  Qxe6 {[%clk 0:01:32]} 37. d8=Q {[%clk 0:00:55]} 1-0


[Site "https://www.chess.com"]

[Event "Titled Tuesday Blitz March 21 Late 2023"]
[White "sebastianmarinp"]
[Black "Romkachess"]
[WhiteElo "2310"]
[BlackElo "2511"]
[Result "0-1"]
[Round "05"]
[TimeControl "180+2"]
[Date "2023.03.21"]
[WhiteClock "0:00:05"]
[BlackClock "0:00:09"]

1. e4 {[%clk 0:03:00]}  c5 {[%clk 0:02:53]} 2. Nf3 {[%clk 0:03:00]}  d6 {[%clk 0:02:53]} 3. d4 {[%clk 0:03:00]}  cxd4 {[%clk 0:02:54]} 4. Nxd4 {[%clk 0:03:00]}  Nf6 {[%clk 0:02:54]} 5. Nc3 {[%clk 0:03:01]}  a6 {[%clk 0:02:54]} 6. f3 {[%clk 0:03:01]}  e5 {[%clk 0:02:52]} 7. Nb3 {[%clk 0:03:01]}  Be6 {[%clk 0:02:51]} 8. Be3 {[%clk 0:03:00]}  h5 {[%clk 0:02:51]} 9. Be2 {[%clk 0:02:57]}  Nbd7 {[%clk 0:02:51]} 10. Nd5 {[%clk 0:02:55]}  Bxd5 {[%clk 0:02:49]} 11. exd5 {[%clk 0:02:56]}  g6 {[%clk 0:02:45]} 12. Qd2 {[%clk 0:02:49]}  b6 {[%clk 0:02:44]} 13. c4 {[%clk 0:02:45]}  a5 {[%clk 0:02:44]} 14. O-O-O {[%clk 0:02:40]}  a4 {[%clk 0:02:33]} 15. Na1 {[%clk 0:02:39]}  Nc5 {[%clk 0:02:33]} 16. Nc2 {[%clk 0:02:35]}  a3 {[%clk 0:02:15]} 17. Nxa3 {[%clk 0:02:28]}  Rxa3 {[%clk 0:02:12]} 18. bxa3 {[%clk 0:02:27]}  Bg7 {[%clk 0:02:12]} 19. Kc2 {[%clk 0:01:55]}  O-O {[%clk 0:01:49]} 20. Rb1 {[%clk 0:01:52]}  Qa8 {[%clk 0:01:36]} 21. Qb4 {[%clk 0:01:45]}  b5 {[%clk 0:01:36]} 22. Bxc5 {[%clk 0:01:29]}  dxc5 {[%clk 0:01:34]} 23. Qxb5 {[%clk 0:01:28]}  Qxa3 {[%clk 0:01:32]} 24. Qb3 {[%clk 0:01:25]}  Qa5 {[%clk 0:01:29]} 25. Bd3 {[%clk 0:01:14]}  Bh6 {[%clk 0:00:45]} 26. Rhd1 {[%clk 0:01:02]}  Kg7 {[%clk 0:00:43]} 27. a3 {[%clk 0:00:55]}  h4 {[%clk 0:00:41]} 28. Qc3 {[%clk 0:00:52]}  Qa4+ {[%clk 0:00:35]} 29. Rb3 {[%clk 0:00:46]}  Bf4 {[%clk 0:00:30]} 30. h3 {[%clk 0:00:40]}  Rb8 {[%clk 0:00:29]} 31. Rb1 {[%clk 0:00:39]}  Kh6 {[%clk 0:00:18]} 32. Kd1 {[%clk 0:00:34]}  Rd8 {[%clk 0:00:19]} 33. Ke2 {[%clk 0:00:31]}  Nh5 {[%clk 0:00:15]} 34. Rb5 {[%clk 0:00:21]}  Ng3+ {[%clk 0:00:13]} 35. Kf2 {[%clk 0:00:21]}  Qa7 {[%clk 0:00:10]} 36. Qb3 {[%clk 0:00:20]}  Qe7 {[%clk 0:00:10]} 37. Qd1 {[%clk 0:00:15]}  Qg5 {[%clk 0:00:10]} 38. Kg1 {[%clk 0:00:13]}  Be3+ {[%clk 0:00:09]} 39. Kh2 {[%clk 0:00:11]}  Qf4 {[%clk 0:00:10]} 40. Qe1 {[%clk 0:00:05]}  Nf1+ {[%clk 0:00:09]} 0-1


[Site "https://www.chess.com"]

[Event "Titled Tuesday Blitz March 21 Late 2023"]
[White "Kokoszczynski, Jan"]
[Black "Smith, Garrett L"]
[WhiteFideId "1174460"]
[BlackFideId "2024829"]
[WhiteElo "2139"]
[BlackElo "2308"]
[Result "1-0"]
[Round "05"]
[TimeControl "180+2"]
[Date "2023.03.21"]
[WhiteClock "0:00:39"]
[BlackClock "0:00:12"]

1. Nf3 {[%clk 0:02:58]}  c5 {[%clk 0:03:00]} 2. g3 {[%clk 0:02:54]}  Nc6 {[%clk 0:03:00]} 3. Bg2 {[%clk 0:02:54]}  e5 {[%clk 0:03:00]} 4. O-O {[%clk 0:02:54]}  Nf6 {[%clk 0:03:01]} 5. c4 {[%clk 0:02:53]}  Be7 {[%clk 0:03:01]} 6. Nc3 {[%clk 0:02:53]}  d6 {[%clk 0:03:01]} 7. b3 {[%clk 0:02:53]}  h6 {[%clk 0:02:57]} 8. Ne1 {[%clk 0:02:51]}  Be6 {[%clk 0:02:56]} 9. Nc2 {[%clk 0:02:51]}  d5 {[%clk 0:02:55]} 10. cxd5 {[%clk 0:02:51]}  Nxd5 {[%clk 0:02:56]} 11. Bb2 {[%clk 0:02:45]}  O-O {[%clk 0:02:51]} 12. Ne3 {[%clk 0:02:41]}  Nc7 {[%clk 0:02:38]} 13. Rc1 {[%clk 0:02:39]}  Qd7 {[%clk 0:02:37]} 14. d3 {[%clk 0:02:40]}  f5 {[%clk 0:02:34]} 15. Qd2 {[%clk 0:02:14]}  f4 {[%clk 0:02:27]} 16. Nc4 {[%clk 0:02:14]}  fxg3 {[%clk 0:02:04]} 17. hxg3 {[%clk 0:02:12]}  Bg5 {[%clk 0:01:58]} 18. e3 {[%clk 0:02:10]}  Bxc4 {[%clk 0:01:42]} 19. bxc4 {[%clk 0:02:09]}  Rad8 {[%clk 0:01:35]} 20. Nd5 {[%clk 0:02:02]}  Kh8 {[%clk 0:01:31]} 21. f4 {[%clk 0:01:59]}  exf4 {[%clk 0:01:28]} 22. gxf4 {[%clk 0:01:58]}  Bh4 {[%clk 0:01:21]} 23. Rf3 {[%clk 0:01:47]}  Nxd5 {[%clk 0:01:11]} 24. cxd5 {[%clk 0:01:47]}  Nb4 {[%clk 0:01:08]} 25. Rh3 {[%clk 0:01:47]}  Bf6 {[%clk 0:01:08]} 26. e4 {[%clk 0:01:37]}  Bxb2 {[%clk 0:00:55]} 27. Qxb2 {[%clk 0:01:38]}  Qd6 {[%clk 0:00:56]} 28. a3 {[%clk 0:01:29]}  Na6 {[%clk 0:00:55]} 29. e5 {[%clk 0:01:29]}  Qb6 {[%clk 0:00:53]} 30. Qd2 {[%clk 0:00:57]}  Nc7 {[%clk 0:00:43]} 31. d6 {[%clk 0:00:51]}  Nb5 {[%clk 0:00:36]} 32. f5 {[%clk 0:00:40]}  Rxf5 {[%clk 0:00:12]} 33. Rxh6+ {[%clk 0:00:39]}  Kg8 {[%clk 0:00:11]} 34. Bd5+ {[%clk 0:00:39]}  Kf8 {[%clk 0:00:12]} 35. Rh8# {[%clk 0:00:39]} 1-0


[Site "https://www.chess.com"]

[Event "Titled Tuesday Blitz March 21 Late 2023"]
[White "Bruedigam, Martin"]
[Black "Jiganchine, Roman"]
[WhiteFideId "24608033"]
[BlackFideId "2603667"]
[WhiteElo "2331"]
[BlackElo "2307"]
[Result "1-0"]
[Round "05"]
[TimeControl "180+2"]
[Date "2023.03.21"]
[WhiteClock "0:00:02"]
[BlackClock "0:00:02"]

1. d4 {[%clk 0:03:00]}  d5 {[%clk 0:02:55]} 2. c4 {[%clk 0:03:00]}  e6 {[%clk 0:02:55]} 3. Nc3 {[%clk 0:03:00]}  Nf6 {[%clk 0:02:55]} 4. cxd5 {[%clk 0:02:59]}  Nxd5 {[%clk 0:02:55]} 5. g3 {[%clk 0:02:57]}  c5 {[%clk 0:02:42]} 6. Bg2 {[%clk 0:02:55]}  cxd4 {[%clk 0:02:38]} 7. Nxd5 {[%clk 0:02:51]}  exd5 {[%clk 0:02:34]} 8. Qxd4 {[%clk 0:02:51]}  Nc6 {[%clk 0:02:25]} 9. Qxd5 {[%clk 0:02:48]}  Bb4+ {[%clk 0:02:20]} 10. Bd2 {[%clk 0:02:45]}  Bxd2+ {[%clk 0:02:11]} 11. Qxd2 {[%clk 0:02:36]}  Qf6 {[%clk 0:02:08]} 12. Nf3 {[%clk 0:02:33]}  O-O {[%clk 0:02:06]} 13. O-O {[%clk 0:02:32]}  Rd8 {[%clk 0:02:06]} 14. Qc1 {[%clk 0:02:14]}  Bg4 {[%clk 0:02:03]} 15. b3 {[%clk 0:02:11]}  Rac8 {[%clk 0:01:53]} 16. Qa3 {[%clk 0:02:03]}  h5 {[%clk 0:01:43]} 17. Rad1 {[%clk 0:02:02]}  Bxf3 {[%clk 0:01:23]} 18. Bxf3 {[%clk 0:02:00]}  Nd4 {[%clk 0:01:22]} 19. Bxb7 {[%clk 0:01:44]}  Nxe2+ {[%clk 0:01:08]} 20. Kg2 {[%clk 0:01:44]}  Rb8 {[%clk 0:00:57]} 21. Qxa7 {[%clk 0:01:29]}  h4 {[%clk 0:00:44]} 22. Rxd8+ {[%clk 0:01:06]}  Rxd8 {[%clk 0:00:43]} 23. Qe3 {[%clk 0:01:05]}  Nd4 {[%clk 0:00:32]} 24. Rd1 {[%clk 0:00:51]}  g6 {[%clk 0:00:13]} 25. Rd3 {[%clk 0:00:44]}  Qb6 {[%clk 0:00:11]} 26. Bf3 {[%clk 0:00:43]}  Nxf3 {[%clk 0:00:09]} 27. Rxd8+ {[%clk 0:00:41]}  Qxd8 {[%clk 0:00:09]} 28. Qxf3 {[%clk 0:00:41]}  Qd7 {[%clk 0:00:06]} 29. gxh4 {[%clk 0:00:40]}  Qb5 {[%clk 0:00:05]} 30. a4 {[%clk 0:00:33]}  Qb4 {[%clk 0:00:04]} 31. Kg3 {[%clk 0:00:34]}  Qd6+ {[%clk 0:00:04]} 32. Qf4 {[%clk 0:00:34]}  Qd3+ {[%clk 0:00:04]} 33. Qe3 {[%clk 0:00:33]}  Qd6+ {[%clk 0:00:04]} 34. f4 {[%clk 0:00:31]}  Kh7 {[%clk 0:00:04]} 35. a5 {[%clk 0:00:28]}  Qa6 {[%clk 0:00:04]} 36. b4 {[%clk 0:00:28]}  Qc4 {[%clk 0:00:03]} 37. Qd2 {[%clk 0:00:27]}  Qe6 {[%clk 0:00:03]} 38. Qc3 {[%clk 0:00:24]}  Qe2 {[%clk 0:00:02]} 39. Qb3 {[%clk 0:00:13]}  Qf1 {[%clk 0:00:02]} 40. b5 {[%clk 0:00:12]}  Kh6 {[%clk 0:00:03]} 41. b6 {[%clk 0:00:12]}  Qg1+ {[%clk 0:00:03]} 42. Kf3 {[%clk 0:00:12]}  Qf1+ {[%clk 0:00:03]} 43. Ke4 {[%clk 0:00:12]}  Qh1+ {[%clk 0:00:03]} 44. Ke5 {[%clk 0:00:12]}  Qe1+ {[%clk 0:00:03]} 45. Kf6 {[%clk 0:00:10]}  Qe4 {[%clk 0:00:03]} 46. Kxf7 {[%clk 0:00:09]}  Qf5+ {[%clk 0:00:03]} 47. Ke7 {[%clk 0:00:08]}  Qe4+ {[%clk 0:00:03]} 48. Kd7 {[%clk 0:00:07]}  Qd4+ {[%clk 0:00:03]} 49. Kc6 {[%clk 0:00:06]}  Qe4+ {[%clk 0:00:03]} 50. Qd5 {[%clk 0:00:06]}  Qa4+ {[%clk 0:00:03]} 51. Kc7 {[%clk 0:00:05]}  Qc2+ {[%clk 0:00:02]} 52. Kb8 {[%clk 0:00:05]}  Qa4 {[%clk 0:00:01]} 53. b7 {[%clk 0:00:03]}  Qe8+ {[%clk 0:00:02]} 54. Ka7 {[%clk 0:00:03]}  Qe3+ {[%clk 0:00:02]} 55. Ka8 {[%clk 0:00:03]}  Qe8+ {[%clk 0:00:02]} 56. b8=Q {[%clk 0:00:02]} 1-0


[Site "https://www.chess.com"]